bitfinex/quotes_BTCUSD_20250519
["timestamp","ask_amount","ask_price","bid_price","bid_amount"]
[1747661423788,1.21149599,102530.0,102520.0,0.00014471]
[1747661424172,1.21649599,102530.0,102520.0,0.00014471]
[1747661425613,0.6982873,102530.0,102520.0,0.00014471]
[1747661425884,0.5006873,102530.0,102520.0,0.00014471]
[1747661426059,0.6984073,102530.0,102520.0,0.00623931]
[1747661426417,0.6984073,102530.0,102520.0,0.00936]
[1747661426810,0.6984073,102530.0,102520.0,0.04737185]
[1747661427021,0.6934073,102530.0,102520.0,0.04737185]
[1747661427234,0.3041273,102530.0,102520.0,0.04737185]
[1747661427429,0.3041273,102530.0,102520.0,0.01617185]
[1747661427430,0.6956073,102530.0,102520.0,0.01617185]
[1747661427655,1.03777599,102530.0,102520.0,0.01617185]
[1747661428871,1.03777599,102530.0,102520.0,0.01305116]
[1747661429052,0.6956073,102530.0,102520.0,0.01305116]
[1747661429729,1.05287599,102530.0,102520.0,0.01305116]
[1747661429941,1.06807599,102530.0,102520.0,0.01305116]
[1747661430115,0.7259073,102530.0,102520.0,0.01305116]
[1747661430316,1.06807599,102530.0,102520.0,0.01305116]
[1747661430804,0.4976873,102530.0,102520.0,0.01305116]
[1747661431036,1.03897599,102530.0,102520.0,0.01305116]
[1747661432168,1.03313684,102530.0,102520.0,0.01305116]
[1747661432331,1.42609684,102530.0,102520.0,0.00695656]
[1747661432951,1.42609684,102530.0,102520.0,0.00014471]
[1747661433562,1.42409684,102530.0,102520.0,0.00014471]
[1747661433963,1.42809684,102530.0,102520.0,0.00014471]
[1747661435163,0.21461253,102510.0,102500.0,0.03806609]
[1747661435370,1.58168016,102510.0,102500.0,0.03806609]
[1747661435550,2.20216016,102510.0,102500.0,0.03]
[1747661436528,2.21279621,102510.0,102500.0,0.03]
[1747661436927,2.21279621,102510.0,102500.0,0.03450662]
[1747661437362,0.56919525,102490.0,102480.0,0.02901845]
[1747661437569,1.78074203,102490.0,102480.0,0.02901845]
[1747661438181,0.58601784,102480.0,102470.0,1.01]
[1747661438391,1.36766462,102480.0,102470.0,1.01]
[1747661438641,1.39220547,102480.0,102470.0,0.46417932]
[1747661438813,6.71310364,102480.0,102470.0,0.14142615]
[1747661439023,6.73894498,102480.0,102470.0,0.12711411]
[1747661439227,0.62005811,102460.0,102450.0,0.01120715]
[1747661439424,2.27956283,102460.0,102450.0,0.01134849]
[1747661439647,2.32816283,102460.0,102450.0,0.00014134]
[1747661439851,2.42547223,102460.0,102450.0,0.00014134]
[1747661440309,1.99823829,102460.0,102450.0,0.00014134]
[1747661440502,2.00123829,102460.0,102450.0,0.00014134]
[1747661440709,1.9432802,102460.0,102450.0,0.00014134]
[1747661440934,0.71816751,102460.0,102450.0,0.00014134]
[1747661441116,1.86863535,102460.0,102450.0,0.00014134]
[1747661441270,1.82027535,102460.0,102450.0,0.00014134]
[1747661441473,1.82043535,102460.0,102450.0,0.00014134]
[1747661441677,1.8390162,102460.0,102450.0,0.00014134]
[1747661442284,1.14226666,102460.0,102450.0,0.00014134]
[1747661442923,1.48443535,102460.0,102450.0,0.00014134]
[1747661443123,1.48043535,102460.0,102450.0,0.00014134]
[1747661443360,1.47743535,102460.0,102450.0,0.00014134]
[1747661443751,1.47943535,102460.0,102450.0,0.00014134]
[1747661444157,1.13726666,102460.0,102450.0,0.00014134]
[1747661444365,1.03995726,102460.0,102450.0,0.03214134]
[1747661444679,1.04195726,102460.0,102450.0,0.03214134]
[1747661445032,0.001,102480.0,102470.0,0.22727907]
[1747661445238,0.02051475,102480.0,102470.0,0.23703792]
[1747661445445,0.001,102480.0,102470.0,0.61113913]
[1747661445830,0.00875524,102500.0,102490.0,0.24081097]
[1747661446113,0.01951009,102510.0,102500.0,0.24642037]
[1747661446283,0.02926104,102520.0,102510.0,0.22436729]
[1747661446513,0.02926104,102520.0,102510.0,0.19510291]
[1747661446514,0.32165498,102520.0,102510.0,0.19510291]
[1747661446646,0.21459187,102520.0,102510.0,0.22830291]
[1747661446851,0.03498734,102550.0,102530.0,0.0166]
[1747661447054,0.31185914,102540.0,102520.0,0.22140253]
[1747661447423,0.03901105,102530.0,102520.0,0.23800253]
[1747661447622,0.03901067,102530.0,102520.0,0.25087638]
[1747661447834,0.03901057,102530.0,102520.0,0.26063019]
[1747661448015,0.03901029,102530.0,102520.0,0.27038371]
[1747661448458,0.31613331,102540.0,102530.0,0.21981809]
[1747661448668,0.20907153,102540.0,102530.0,0.25542371]
[1747661448875,0.02571886,102550.0,102540.0,0.20479802]
[1747661449090,0.22503867,102550.0,102540.0,0.21455012]
[1747661449306,0.01596771,102550.0,102540.0,0.60615365]
[1747661449730,0.01596771,102550.0,102540.0,0.78178309]
[1747661449990,0.01596771,102550.0,102540.0,1.11021145]
[1747661450207,0.01596771,102550.0,102540.0,1.12788973]
[1747661450419,0.02,102560.0,102550.0,0.59587968]
[1747661450630,0.02014104,102560.0,102550.0,0.69318908]
[1747661450841,0.01949554,102580.0,102550.0,0.69318908]
[1747661450842,0.20902677,102590.0,102580.0,0.22421398]
[1747661451056,0.01949022,102610.0,102600.0,0.21441848]
[1747661451275,0.03,102620.0,102610.0,0.22414853]
[1747661451498,0.0689773,102620.0,102610.0,0.21440356]
[1747661451737,0.01949459,102590.0,102580.0,0.0165]
[1747661451942,0.01949459,102590.0,102560.0,0.21007621]
[1747661451943,0.02924706,102570.0,102560.0,0.05614085]
[1747661452150,0.02924763,102570.0,102560.0,0.05614085]
[1747661452402,0.22423641,102570.0,102560.0,0.1289094]
[1747661452617,0.21448736,102570.0,102560.0,0.10042935]
[1747661452844,0.19497843,102580.0,102570.0,0.00974943]
[1747661453049,0.40841843,102580.0,102570.0,0.00974943]
[1747661453463,0.50572783,102580.0,102570.0,0.00311995]
[1747661453685,0.50568783,102580.0,102570.0,0.00311995]
[1747661454520,1.46356841,102580.0,102570.0,0.00311995]
[1747661454737,0.92578783,102580.0,102570.0,0.00511995]
[1747661454959,0.92578783,102580.0,102570.0,0.00311995]
[1747661454960,0.63228783,102580.0,102570.0,0.00311995]
[1747661455168,0.76394868,102580.0,102570.0,0.00311995]
[1747661455581,0.20473802,102570.0,102560.0,0.002]
[1747661455783,0.20475799,102560.0,102550.0,0.21552765]
[1747661455989,0.00974839,102580.0,102570.0,0.19498878]
[1747661456258,0.03403544,102590.0,102580.0,0.21446607]
[1747661456473,0.01949459,102590.0,102580.0,0.21446607]
[1747661456828,0.00974782,102580.0,102570.0,0.58578613]
[1747661457028,0.00974782,102580.0,102570.0,0.2457866]
[1747661457029,0.04299156,102580.0,102570.0,0.2457866]
[1747661457196,0.03899156,102580.0,102570.0,0.2457866]
[1747661457395,0.03899222,102580.0,102570.0,0.2501849]
[1747661457597,0.00975019,102560.0,102550.0,0.3718]
[1747661457799,0.20475799,102560.0,102550.0,0.0167]
[1747661458055,0.20475799,102560.0,102550.0,0.01981876]
[1747661458260,0.20475799,102560.0,102550.0,0.00411876]
[1747661458891,0.20475799,102560.0,102550.0,0.21389672]
[1747661459271,0.20475799,102560.0,102550.0,0.00911876]
[1747661459522,0.1950078,102560.0,102550.0,0.00411876]
[1747661459939,0.2923172,102560.0,102550.0,0.00411876]
[1747661460976,0.6812478,102560.0,102550.0,0.0138701]
[1747661461189,0.20951062,102580.0,102560.0,0.21450799]
[1747661461190,0.19496977,102580.0,102560.0,0.21450799]
[1747661461397,0.31177585,102580.0,102570.0,0.70672555]
[1747661461610,0.68139077,102590.0,102580.0,0.21446626]
[1747661461817,0.2608944,102590.0,102580.0,0.72620018]
[1747661462023,0.2414,102590.0,102580.0,1.09760018]
[1747661462233,0.20473379,102610.0,102600.0,0.22417066]
[1747661462436,0.30204319,102610.0,102600.0,0.71640885]
[1747661462636,0.01963093,102610.0,102600.0,0.72615477]
[1747661462842,0.01963093,102610.0,102600.0,0.74245477]
[1747661463045,0.01963093,102610.0,102600.0,0.75885477]
[1747661463231,0.02937618,102610.0,102600.0,0.75885477]
[1747661463439,0.00014109,102610.0,102600.0,0.75885477]
[1747661463641,0.00988587,102610.0,102600.0,0.76531274]
[1747661463773,0.0293759,102610.0,102600.0,0.27307455]
[1747661464129,0.0303759,102610.0,102600.0,0.27307455]
[1747661464271,0.04012125,102610.0,102600.0,0.27307455]
[1747661464478,0.00114109,102610.0,102600.0,1.20262214]
[1747661464826,0.00114109,102610.0,102600.0,1.44974214]
[1747661464992,0.00114109,102610.0,102600.0,1.20262214]
[1747661465171,0.22728962,102610.0,102600.0,0.01620455]
[1747661465368,0.22728962,102610.0,102600.0,0.01286534]
[1747661465608,0.22728962,102610.0,102600.0,0.2175436]
[1747661465827,0.47384962,102610.0,102600.0,0.2175436]
[1747661466200,0.46310465,102610.0,102600.0,0.00311876]
[1747661466624,0.56041405,102610.0,102600.0,0.00311876]
[1747661467051,0.91641405,102610.0,102600.0,0.00311876]
[1747661467221,1.54570249,102610.0,102600.0,0.00311876]
[1747661467666,0.7949043,102610.0,102600.0,0.00311876]
[1747661467874,1.1990749,102610.0,102600.0,0.00311876]
[1747661468077,0.21921901,102600.0,102590.0,0.00333012]
[1747661468279,0.30198756,102600.0,102590.0,0.00333012]
[1747661468529,0.20467816,102600.0,102590.0,0.19828089]
[1747661468770,0.71342446,102600.0,102590.0,0.71001357]
[1747661468966,0.71342446,102600.0,102590.0,0.21777538]
[1747661469330,0.71342446,102600.0,102590.0,0.22533895]
[1747661469994,0.70367816,102600.0,102590.0,0.01089369]
[1747661470212,0.80098756,102600.0,102590.0,0.01089369]
[1747661470432,0.81652841,102600.0,102590.0,0.01089369]
[1747661470652,0.80198756,102600.0,102590.0,0.01089369]
[1747661470877,0.80398756,102600.0,102590.0,0.01089369]
[1747661471103,0.80378756,102600.0,102590.0,0.00756357]
[1747661471791,0.30498756,102600.0,102590.0,0.00756357]
[1747661472010,0.80366756,102600.0,102590.0,0.00756357]
[1747661472460,1.6814466,102600.0,102590.0,0.00756357]
[1747661473146,1.6914466,102600.0,102590.0,0.00756357]
[1747661473373,1.7014466,102600.0,102590.0,0.00756357]
[1747661473594,1.6994466,102600.0,102590.0,0.00311796]
[1747661473809,1.6984466,102600.0,102590.0,0.00311796]
[1747661474034,1.801756,102600.0,102590.0,0.00311796]
[1747661474499,1.775756,102600.0,102590.0,0.00311796]
[1747661474727,1.780756,102600.0,102590.0,0.00311796]
[1747661475342,1.775756,102600.0,102590.0,0.00311796]
[1747661475841,1.782756,102600.0,102590.0,0.00311796]
[1747661476057,1.786756,102600.0,102590.0,0.00311796]
[1747661476269,1.21424841,102600.0,102590.0,0.00311796]
[1747661476487,1.7064866,102600.0,102590.0,0.00311796]
[1747661476693,1.7024866,102600.0,102590.0,0.01091727]
[1747661476921,1.6924866,102600.0,102590.0,0.01091727]
[1747661477170,0.59962783,102570.0,102560.0,0.00894846]
[1747661477430,2.11013542,102570.0,102560.0,0.00894846]
[1747661477948,2.13940842,102570.0,102560.0,0.00894846]
[1747661478176,0.61089884,102560.0,102550.0,0.001]
[1747661478391,1.20044643,102560.0,102550.0,0.001]
[1747661478603,1.19044643,102560.0,102550.0,0.001]
[1747661478815,6.53839482,102560.0,102550.0,0.001]
[1747661479045,0.61929059,102540.0,102530.0,0.00794846]
[1747661479251,1.69915818,102540.0,102530.0,0.00843084]
[1747661479875,1.23343992,102540.0,102530.0,0.00048238]
[1747661480081,1.69915818,102540.0,102530.0,0.00048238]
[1747661480315,1.82298751,102540.0,102530.0,0.00048238]
[1747661480939,1.82498751,102540.0,102530.0,0.00048238]
[1747661481610,0.56919525,102490.0,102480.0,0.09743013]
[1747661481826,1.58722465,102490.0,102480.0,0.08952719]
[1747661482055,1.61374458,102490.0,102480.0,0.08952719]
[1747661482474,1.58770465,102490.0,102480.0,0.08952719]
[1747661482687,1.58770465,102490.0,102480.0,0.07832004]
[1747661482888,1.08766465,102490.0,102480.0,0.08132004]
[1747661483096,1.5730438,102490.0,102480.0,0.08146108]
[1747661483311,1.0731238,102490.0,102480.0,0.08146108]
[1747661483527,1.5729238,102490.0,102480.0,0.08146108]
[1747661483739,1.58746465,102490.0,102480.0,0.00314104]
[1747661484363,1.33638465,102490.0,102480.0,0.00614104]
[1747661484578,1.58810465,102490.0,102480.0,0.00614104]
[1747661484792,1.24810465,102490.0,102480.0,0.00614104]
[1747661485615,2.08034284,102490.0,102480.0,0.00614104]
[1747661486029,1.58810465,102490.0,102480.0,0.00614104]
[1747661486243,1.24810465,102490.0,102480.0,0.00614104]
[1747661486455,0.99638465,102490.0,102480.0,0.00614104]
[1747661486663,1.24938465,102490.0,102480.0,0.00614104]
[1747661486861,1.24986465,102490.0,102480.0,0.00614104]
[1747661487526,0.3119638,102490.0,102480.0,0.03774104]
[1747661487738,0.2146544,102490.0,102480.0,0.33073663]
[1747661487976,0.69692195,102500.0,102490.0,0.24705478]
[1747661487977,0.24876,102500.0,102490.0,0.24705478]
[1747661488191,0.50232,102500.0,102490.0,0.75880601]
[1747661488405,0.42132,102510.0,102500.0,0.24703385]
[1747661488615,0.42132,102510.0,102500.0,1.23710322]
[1747661488830,0.42132,102510.0,102500.0,1.15878318]
[1747661489030,0.02925838,102530.0,102520.0,0.19508388]
[1747661489237,0.50292,102530.0,102520.0,0.22748388]
[1747661489446,0.51267248,102530.0,102520.0,0.24699178]
[1747661489913,0.31188006,102530.0,102520.0,0.00312018]
[1747661490123,0.82954091,102530.0,102520.0,0.00312018]
[1747661490382,0.83002291,102530.0,102520.0,0.00312018]
[1747661491005,0.83202291,102530.0,102520.0,0.00312018]
[1747661491129,0.81748206,102530.0,102520.0,0.00312018]
[1747661492175,0.81708206,102530.0,102520.0,0.19820406]
[1747661492382,0.8073293,102530.0,102520.0,0.19820406]
[1747661492594,0.3046093,102530.0,102520.0,0.19820406]
[1747661492809,0.8070093,102530.0,102520.0,0.19820406]
[1747661493015,0.8070093,102530.0,102520.0,0.00312018]
[1747661493225,0.82155015,102530.0,102520.0,0.00312018]
[1747661493452,1.16155015,102530.0,102520.0,0.00312018]
[1747661493667,1.74351382,102530.0,102520.0,0.00312018]
[1747661493885,1.77571382,102530.0,102520.0,0.00312018]
[1747661494137,1.78571382,102530.0,102520.0,0.00312018]
[1747661494346,1.78571382,102530.0,102500.0,0.00894775]
[1747661494347,0.55461253,102510.0,102500.0,0.00894775]
[1747661494556,1.20090097,102510.0,102500.0,0.00894775]
[1747661494794,1.29821037,102510.0,102500.0,0.00894775]
[1747661494997,1.32749937,102510.0,102500.0,0.00894775]
[1747661495616,1.32749937,102510.0,102500.0,0.00312165]
[1747661496072,1.75885937,102510.0,102500.0,0.00412165]
[1747661496189,1.73885937,102510.0,102500.0,0.00412165]
[1747661496399,0.62793863,102500.0,102490.0,0.02]
[1747661496670,1.32479562,102500.0,102490.0,0.02]
[1747661496873,1.72328622,102500.0,102490.0,0.02]
[1747661497078,1.1782281,102500.0,102490.0,0.02]
[1747661497284,0.9096081,102500.0,102490.0,0.02]
[1747661497500,1.1624081,102500.0,102490.0,0.02]
[1747661497961,1.76495569,102500.0,102490.0,0.02]
[1747661498167,1.82427562,102500.0,102490.0,0.02]
[1747661498374,1.82627562,102500.0,102490.0,0.02]
[1747661498583,1.72896622,102500.0,102490.0,0.02]
[1747661498793,0.9146081,102500.0,102490.0,0.02]
[1747661499002,1.15318725,102500.0,102490.0,0.02]
[1747661499225,0.64718725,102500.0,102490.0,0.02]
[1747661499426,1.1676881,102500.0,102490.0,0.02]
[1747661499837,1.68149625,102500.0,102490.0,0.02]
[1747661500040,1.72249625,102500.0,102490.0,0.02]
[1747661500243,1.21653625,102500.0,102490.0,0.02]
[1747661500447,1.72037625,102500.0,102490.0,0.02]
[1747661500666,1.72837625,102500.0,102490.0,0.02]
[1747661503209,1.73337625,102500.0,102490.0,0.02]
[1747661503401,6.92113425,102500.0,102490.0,0.02]
[1747661503608,6.91113425,102500.0,102490.0,0.02]
[1747661503811,6.96923488,102500.0,102490.0,0.02]
[1747661504007,6.91113425,102500.0,102490.0,0.02]
[1747661504491,6.91173425,102500.0,102490.0,0.02]
[1747661505354,6.92671054,102500.0,102490.0,0.02]
[1747661505607,1.49547254,102500.0,102490.0,0.02]
[1747661505813,1.74863254,102500.0,102490.0,0.02]
[1747661506018,1.24251254,102500.0,102490.0,0.02]
[1747661506221,1.74827254,102500.0,102490.0,0.02]
[1747661506633,1.48047254,102500.0,102490.0,0.02]
[1747661506871,1.73343254,102500.0,102490.0,0.02]
[1747661507078,7.23729054,102500.0,102490.0,0.02]
[1747661507290,7.22729054,102500.0,102490.0,0.02]
[1747661507508,0.56927906,102450.0,102440.0,0.08726779]
[1747661507711,2.08634665,102450.0,102440.0,0.08726779]
[1747661507912,1.59410846,102450.0,102440.0,0.08726779]
[1747661508324,1.62340946,102450.0,102440.0,0.08726779]
[1747661508525,1.10282861,102450.0,102440.0,0.08726779]
[1747661508732,1.10282861,102450.0,102440.0,0.11986779]
[1747661508733,1.23932761,102450.0,102440.0,0.11986779]
[1747661508957,1.23932761,102450.0,102440.0,0.12764784]
[1747661509165,1.23932761,102450.0,102440.0,0.11870009]
[1747661509339,1.23932761,102450.0,102440.0,0.12879967]
[1747661510001,1.23932761,102450.0,102440.0,0.13560047]
[1747661510210,1.21690575,102450.0,102440.0,0.04588043]
[1747661510414,1.59096764,102450.0,102440.0,0.02516464]
[1747661510618,1.59096764,102450.0,102440.0,0.01836384]
[1747661510866,1.25096764,102450.0,102440.0,0.01836384]
[1747661511058,1.23642679,102450.0,102440.0,0.04356426]
[1747661511710,1.23642679,102450.0,102440.0,0.02806426]
[1747661511910,1.23642679,102450.0,102440.0,0.01226426]
[1747661512325,1.25096764,102450.0,102440.0,0.01836392]
[1747661512935,1.25096764,102450.0,102440.0,0.01226426]
[1747661515460,1.59096764,102450.0,102440.0,0.01226426]
[1747661516266,2.08320583,102450.0,102440.0,0.01226426]
[1747661516685,1.58996764,102450.0,102440.0,0.00726426]
[1747661516887,2.08320583,102450.0,102440.0,0.01126426]
[1747661517318,1.59096764,102450.0,102440.0,0.00726426]
[1747661517722,1.59108764,102450.0,102440.0,0.01026426]
[1747661517924,1.59108764,102450.0,102440.0,0.00326426]
[1747661517925,1.59008764,102450.0,102440.0,0.00326426]
[1747661518334,1.59008764,102450.0,102440.0,0.00426426]
[1747661519112,1.60000172,102450.0,102440.0,0.00426426]
[1747661519313,1.60100172,102450.0,102440.0,0.00726426]
[1747661519529,1.33812764,102450.0,102440.0,0.00726426]
[1747661519660,1.59024764,102450.0,102440.0,0.00726426]
[1747661519866,1.59004764,102450.0,102440.0,0.00726426]
[1747661520265,1.59004764,102450.0,102440.0,0.01176919]
[1747661521077,2.14204167,102450.0,102440.0,0.01176919]
[1747661521286,2.19364167,102450.0,102440.0,0.01176919]
[1747661521510,7.38139967,102450.0,102440.0,0.01176919]
[1747661521714,7.37139967,102450.0,102440.0,0.01176919]
[1747661522113,0.02,102440.0,102420.0,0.00894775]
[1747661522386,0.02,102440.0,102420.0,0.00908909]
[1747661522387,1.25876858,102430.0,102420.0,0.00908909]
[1747661522591,1.28528851,102430.0,102420.0,0.00908909]
[1747661523011,6.48304651,102430.0,102420.0,0.00014134]
[1747661523241,6.51462721,102430.0,102420.0,0.00014134]
[1747661523449,6.50462721,102430.0,102420.0,0.00014134]
[1747661523659,6.60293661,102430.0,102420.0,0.00014134]
[1747661523880,6.61781037,102430.0,102420.0,0.00014134]
[1747661524085,6.59622967,102430.0,102420.0,0.00014134]
[1747661524299,1.26464234,102430.0,102420.0,0.00014134]
[1747661524523,1.75544858,102430.0,102420.0,0.00014134]
[1747661524791,0.71623039,102430.0,102420.0,0.00014134]
[1747661525019,0.81872954,102430.0,102420.0,0.00014134]
[1747661525192,0.82072954,102430.0,102420.0,0.00014134]
[1747661525423,0.82072954,102430.0,102420.0,0.03244134]
[1747661525639,0.82072954,102430.0,102420.0,0.03926042]
[1747661525889,0.47086014,102430.0,102420.0,0.13344452]
[1747661526095,0.47086014,102430.0,102420.0,0.33848231]
[1747661526326,0.47086014,102430.0,102420.0,0.12368081]
[1747661526544,0.54374663,102430.0,102420.0,0.04536077]
[1747661526746,0.29066663,102430.0,102420.0,0.04536077]
[1747661526949,0.56411148,102430.0,102420.0,0.04836077]
[1747661527165,0.52897538,102430.0,102420.0,0.05740299]
[1747661527372,0.52897538,102430.0,102420.0,0.02510299]
[1747661527373,0.54351623,102430.0,102420.0,0.02510299]
[1747661527830,0.54151623,102430.0,102420.0,0.02510299]
[1747661528034,0.54151623,102430.0,102420.0,0.01900264]
[1747661528243,0.88151623,102430.0,102420.0,0.02610352]
[1747661529110,0.88151623,102430.0,102420.0,0.0170613]
[1747661529325,0.88151623,102430.0,102420.0,0.01024222]
[1747661530402,0.97882563,102430.0,102420.0,0.01024222]
[1747661530625,1.47106382,102430.0,102420.0,0.00414134]
[1747661531058,1.50326382,102430.0,102420.0,0.00414134]
[1747661531484,1.52023082,102430.0,102420.0,0.00414134]
[1747661531718,1.51923082,102430.0,102420.0,0.00114134]
[1747661532181,0.89748323,102430.0,102420.0,0.00114134]
[1747661532388,0.88251623,102430.0,102420.0,0.00114134]
[1747661532575,0.88251623,102430.0,102420.0,0.00014134]
[1747661533228,0.88451623,102430.0,102420.0,0.00114134]
[1747661534063,1.13759623,102430.0,102420.0,0.00114134]
[1747661534285,1.13759623,102430.0,102420.0,0.03344134]
[1747661534286,0.78285538,102430.0,102420.0,0.03344134]
[1747661534502,0.78285538,102430.0,102420.0,0.12468624]
[1747661534717,0.43270598,102430.0,102420.0,0.8219625]
[1747661534935,0.43270598,102430.0,102420.0,1.19125231]
[1747661534936,0.013762,102430.0,102420.0,1.19125231]
[1747661535151,0.00976114,102440.0,102430.0,0.25684242]
[1747661535364,0.00976114,102440.0,102430.0,1.09517937]
[1747661536053,0.00976114,102440.0,102430.0,1.10200346]
[1747661536259,0.00976114,102440.0,102430.0,1.10512616]
[1747661536703,0.00976,102450.0,102440.0,0.5859588]
[1747661536919,0.02928047,102450.0,102440.0,1.05675803]
[1747661537127,0.02928047,102450.0,102440.0,1.07280358]
[1747661537355,0.02928047,102450.0,102440.0,1.10490358]
[1747661537792,0.01951905,102460.0,102450.0,0.2468384]
[1747661538011,0.0390379,102460.0,102450.0,0.74883678]
[1747661538226,0.01951857,102460.0,102450.0,1.09566087]
[1747661538440,0.01951847,102460.0,102450.0,1.09878357]
[1747661538887,0.03903761,102460.0,102450.0,0.61264414]
[1747661539299,0.03903752,102460.0,102450.0,0.61464414]
[1747661539707,0.03903752,102460.0,102450.0,1.10788233]
[1747661539918,0.0292779,102460.0,102450.0,1.10788233]
[1747661540126,0.22448821,102470.0,102460.0,0.25507697]
[1747661540735,0.22448821,102470.0,102460.0,0.25819967]
[1747661540934,0.22448821,102470.0,102460.0,0.26429843]
[1747661541366,0.21472964,102470.0,102460.0,0.02482146]
[1747661541575,0.30228019,102470.0,102460.0,0.01604555]
[1747661541788,0.80876019,102470.0,102460.0,0.01604555]
[1747661542006,1.14876019,102470.0,102460.0,0.00994679]
[1747661542207,1.16430104,102470.0,102460.0,0.0031227]
[1747661542409,2.07813923,102470.0,102460.0,0.0031227]
[1747661542553,1.58590104,102470.0,102460.0,0.0031227]
[1747661543177,0.20495783,102460.0,102450.0,0.03556633]
[1747661543377,0.30226723,102460.0,102450.0,0.03570767]
[1747661543579,0.30226723,102460.0,102450.0,0.04180619]
[1747661543996,0.30226723,102460.0,102450.0,0.04156216]
[1747661544577,0.31680808,102460.0,102450.0,0.00936216]
[1747661544781,0.65680808,102460.0,102450.0,0.00936216]
[1747661544984,0.65680808,102460.0,102450.0,0.00014134]
[1747661545212,0.65680808,102460.0,102450.0,0.00114134]
[1747661545578,0.65680808,102460.0,102450.0,0.00214134]
[1747661545784,0.31680808,102460.0,102450.0,0.00214134]
[1747661545982,0.30226723,102460.0,102450.0,0.00214134]
[1747661546364,0.30226723,102460.0,102450.0,0.03264134]
[1747661546565,0.20495783,102460.0,102450.0,0.04553581]
[1747661546776,0.01951933,102460.0,102450.0,1.09251221]
[1747661546988,0.00975933,102460.0,102450.0,1.1022723]
[1747661547200,0.01951818,102460.0,102450.0,1.18438048]
[1747661547410,0.01951818,102460.0,102450.0,1.60340317]
[1747661547613,0.02927751,102460.0,102450.0,1.60340317]
[1747661548059,0.02927751,102460.0,102450.0,1.60240317]
[1747661548265,0.02927751,102460.0,102450.0,1.60440317]
[1747661548475,0.02927608,102470.0,102460.0,0.57977697]
[1747661548596,0.01951666,102470.0,102460.0,1.09717439]
[1747661549011,0.0097579,102480.0,102470.0,0.25515506]
[1747661549212,0.02927352,102480.0,102470.0,0.75349026]
[1747661549417,0.02927352,102480.0,102470.0,0.7602865]
[1747661549615,0.02927352,102480.0,102470.0,1.10340919]
[1747661549821,0.01951552,102480.0,102470.0,1.11316747]
[1747661550015,0.00975676,102490.0,102480.0,0.0307]
[1747661550257,0.02927018,102490.0,102480.0,0.74981015]
[1747661550432,0.0195119,102500.0,102490.0,0.59511125]
[1747661550633,0.02926752,102500.0,102490.0,1.09710582]
[1747661550995,0.00975505,102510.0,102500.0,0.59688937]
[1747661551207,0.02926495,102510.0,102500.0,1.08912756]
[1747661551488,0.23681505,102530.0,102510.0,0.20485786]
[1747661551724,0.04214621,102530.0,102520.0,1.06136051]
[1747661551955,0.06165192,102530.0,102520.0,1.08818349]
[1747661552184,0.26646925,102530.0,102520.0,1.48452698]
[1747661552408,0.27622239,102530.0,102520.0,1.48764967]
[1747661552637,0.27622239,102530.0,102520.0,1.48155266]
[1747661552845,0.08315745,102530.0,102520.0,1.49130618]
[1747661553041,0.08115745,102530.0,102520.0,1.49130618]
[1747661553928,0.0714044,102530.0,102520.0,1.49130618]
[1747661554845,0.08115754,102530.0,102520.0,1.46524632]
[1747661555116,0.08115754,102530.0,102520.0,1.56255572]
[1747661555117,0.04214621,102530.0,102520.0,1.56255572]
[1747661555361,0.04214621,102530.0,102520.0,1.5686487]
[1747661555975,0.04214621,102530.0,102520.0,1.57200338]
[1747661556189,0.05189859,102530.0,102520.0,1.82380338]
[1747661556440,0.08115688,102530.0,102520.0,1.57873046]
[1747661556649,0.09091002,102530.0,102520.0,1.57500338]
[1747661556852,0.09091002,102530.0,102520.0,1.5689104]
[1747661557719,0.28597487,102530.0,102520.0,1.55915688]
[1747661557941,0.25671725,102530.0,102520.0,0.00947737]
[1747661558575,1.19834665,102530.0,102520.0,0.00647737]
[1747661558794,1.19834665,102530.0,102520.0,0.01147737]
[1747661559036,1.19934665,102530.0,102520.0,0.01335468]
[1747661559246,1.19934665,102530.0,102520.0,0.00835468]
[1747661559446,1.19834665,102530.0,102520.0,0.00635468]
[1747661559701,1.2128875,102530.0,102520.0,0.00635468]
[1747661559906,1.2311875,102530.0,102520.0,0.00635468]
[1747661560109,1.19986665,102530.0,102520.0,0.003]
[1747661560542,1.2144075,102530.0,102520.0,0.003]
[1747661560712,1.2464075,102530.0,102520.0,0.003]
[1747661560921,0.21463347,102500.0,102490.0,0.00335468]
[1747661562321,0.20489783,102490.0,102480.0,0.81063094]
[1747661562526,0.20489783,102490.0,102480.0,0.92745586]
[1747661562729,0.20489783,102490.0,102480.0,0.94330886]
[1747661562945,0.20489783,102490.0,102480.0,1.28330886]
[1747661563195,0.02927056,102490.0,102480.0,1.29306619]
[1747661563422,0.02927056,102490.0,102480.0,1.29618702]
[1747661564396,0.02927056,102490.0,102480.0,1.22086698]
[1747661564597,0.02927056,102490.0,102480.0,1.2205123]
[1747661565162,0.21465478,102490.0,102480.0,0.3870164]
[1747661565364,0.21465478,102490.0,102480.0,0.57613443]
[1747661565535,0.20489793,102490.0,102480.0,0.57613443]
[1747661565747,0.21465478,102490.0,102480.0,0.58289224]
[1747661565943,0.21465478,102490.0,102480.0,1.20425497]
[1747661566153,0.21465478,102490.0,102480.0,1.60825497]
[1747661566379,0.19512195,102500.0,102490.0,0.34]
[1747661566657,0.00975543,102500.0,102490.0,1.16005375]
[1747661566860,0.00975495,102510.0,102500.0,0.58603366]
[1747661567076,0.01999122,102510.0,102500.0,1.4977829]
[1747661567227,0.01999122,102510.0,102500.0,1.00866554]
[1747661567228,0.02974617,102510.0,102500.0,1.00866554]
[1747661567442,0.01418946,102510.0,102500.0,1.5069993]
[1747661567622,0.03369937,102510.0,102500.0,1.51376754]
[1747661568861,0.03369937,102510.0,102500.0,1.61107694]
[1747661568862,0.01999054,102510.0,102500.0,1.61107694]
[1747661569291,0.01023607,102510.0,102500.0,1.61107694]
[1747661569644,0.00048179,102510.0,102500.0,1.61107694]
[1747661570147,0.25623498,102530.0,102520.0,0.5961453]
[1747661570364,0.04180862,102530.0,102520.0,1.18569289]
[1747661570816,0.04180862,102530.0,102520.0,1.1985567]
[1747661571241,0.04180862,102530.0,102520.0,1.19178846]
[1747661571461,0.04180862,102530.0,102520.0,1.59490929]
[1747661571699,0.04180862,102530.0,102520.0,1.61345014]
[1747661571898,0.04180862,102530.0,102520.0,1.61145014]
[1747661572110,0.04180862,102530.0,102520.0,1.60945014]
[1747661572324,0.04180862,102530.0,102520.0,1.61145014]
[1747661572548,0.04180862,102530.0,102520.0,1.6334467]
[1747661573255,0.07832004,102570.0,102530.0,0.37454085]
[1747661573477,0.00989318,102570.0,102560.0,0.716496]
[1747661573667,0.0001446,102570.0,102560.0,1.087896]
[1747661573924,0.0001446,102570.0,102560.0,1.49398813]
[1747661574134,0.0001446,102570.0,102560.0,1.49398658]
[1747661574396,0.00989318,102570.0,102560.0,1.49398658]
[1747661574600,0.0001446,102570.0,102560.0,1.47898658]
[1747661574818,0.0001446,102570.0,102560.0,1.48210741]